fUSD/lending_fUSD_20240828
["ID","MTS","AMOUNT","RATE_DAILY","PERIOD"]
[336514804,1724887649770,151.333524,0.00010997,2]
[336514805,1724887650005,500.762722,0.00010998,2]
[336514806,1724887650081,151.333524,0.00010997,2]
[336514807,1724887650345,500.762722,0.00010998,2]
[336514808,1724887650521,151.333524,0.00010998,2]
[336514809,1724887650652,500.762722,0.00010998,2]
[336514810,1724887650836,151.333524,0.00010998,2]
[336514811,1724887650981,500.762722,0.00010998,2]
[336514812,1724887651073,151.333524,0.00010998,2]
[336514813,1724887651278,500.762722,0.00010998,2]
[336514814,1724887651378,151.333524,0.00010998,2]
[336514815,1724887651648,500.762722,0.00010998,2]
[336514816,1724887651748,151.333524,0.00010998,2]
[336514817,1724887651937,500.762722,0.00010998,2]
[336514818,1724887651992,151.333524,0.00010998,2]
[336514819,1724887652257,500.762722,0.00010998,2]
[336514820,1724887652312,151.333524,0.00010998,2]
[336514821,1724887652570,500.762722,0.00010998,2]
[336514822,1724887652621,151.333524,0.00010998,2]
[336514823,1724887652891,500.762722,0.00010998,2]
[336514824,1724887653206,500.762722,0.00010998,2]
[336514825,1724887653528,151.333524,0.00010998,2]
[336514826,1724887653572,500.762722,0.00010998,2]
[336514827,1724887653758,151.333524,0.00010998,2]
[336514828,1724887653860,500.762722,0.00010998,2]
[336514829,1724887655131,151.333524,0.00010998,2]
[336514830,1724887655257,500.762722,0.00010998,2]
[336514831,1724887655340,151.333524,0.00010998,2]
[336514832,1724887655575,500.762722,0.00010998,2]
[336514833,1724887655640,151.333524,0.00010998,2]
[336514834,1724887655948,151.333524,0.00010998,2]
[336514835,1724887655992,500.762722,0.00010998,2]
[336514836,1724887656090,151.333524,0.00010998,2]
[336514837,1724887656149,500.762722,0.00010998,2]
[336514838,1724887656243,151.333524,0.00010998,2]
[336514839,1724887656288,500.762722,0.00010998,2]
[336514840,1724887656377,151.333524,0.00010998,2]
[336514841,1724887656481,151.333524,0.00010998,2]
[336514842,1724887656760,151.333524,0.00010998,2]
[336514843,1724887657065,151.333524,0.00010998,2]
[336514844,1724887657364,151.333524,0.00010998,2]
[336514845,1724887677243,204.62312072,0.0001,2]
[336514846,1724887692679,159.304025,0.00010958,2]
[336514847,1724887692986,159.304025,0.00010958,2]
[336514848,1724887693014,152.488363,0.00010958,2]
[336514849,1724887693305,159.304025,0.00010997,2]
[336514850,1724887693332,152.488363,0.00010958,2]
[336514851,1724887693629,152.488363,0.00010997,2]
[336514852,1724887693936,152.488363,0.00010998,2]
[336514853,1724887694120,159.304025,0.00010997,2]
[336514854,1724887694265,152.488363,0.00010998,2]
[336514855,1724887694639,159.304025,0.00010998,2]
[336514856,1724887694666,152.488363,0.00010998,2]
[336514857,1724887694971,159.304025,0.00010998,2]
[336514858,1724887695422,159.304025,0.00010998,2]
[336514859,1724887695729,159.304025,0.00010998,2]
[336514860,1724887696023,159.304025,0.00010998,2]
[336514861,1724887696335,159.304025,0.00010998,2]
[336514862,1724887696791,159.304025,0.00010998,2]
[336514863,1724887697089,159.304025,0.00010998,2]
[336514864,1724887697400,159.304025,0.00010998,2]
[336514865,1724887699860,152.488363,0.00010998,2]
[336514866,1724887700217,152.488363,0.00010998,2]
[336514867,1724887700555,152.488363,0.00010998,2]
[336514868,1724887712160,1570.03121084,0.00010998,2]
[336514869,1724887716631,481.17013406,0.0002,60]
[336514872,1724887774652,500.0,0.00024,120]
[336514878,1724887831498,-297.41,0.00013699,2]
[336514879,1724887831507,-318.42281931,0.00014873,2]
[336514880,1724887831516,-500.0,0.00014973,2]
[336514881,1724887831526,-200.0,0.00014973,2]
[336514883,1724887831535,-500.0,0.00014973,2]
[336514885,1724887831544,-287.31,0.0001499,3]
[336514887,1724887831555,-150.0,0.00014999,2]
[336514888,1724887831564,-1865.32758864,0.00015,2]
[336514889,1724887831576,-2760.64835134,0.00015,2]
[336514890,1724887831587,-436.06621227,0.00015,2]
[336514891,1724887831598,-567.14,0.00015,2]
[336514892,1724887831613,-5183.12686439,0.00015,2]
[336514893,1724887831626,-2613.10872722,0.00015,2]
[336514894,1724887831644,-598.97184433,0.00015,2]
[336514895,1724887831655,-450.50241639,0.00015,2]
[336514896,1724887831667,-635.97483763,0.00015,2]
[336514897,1724887831678,-541.0092199,0.00015,2]
[336514898,1724887831690,-2596.52272701,0.00015,2]
[336514899,1724887831702,-340.78735789,0.00015,2]
[336514900,1724887831729,-542.67878054,0.00015,2]
[336514901,1724887831740,-541.23026958,0.00015,2]
[336514902,1724887831777,-792.5901174,0.00015,2]
[336514903,1724887831789,-703.37788318,0.00015,2]
[336514904,1724887831895,-1974.8225,0.00015,2]
[336514905,1724887831910,-876.11960137,0.00015,2]
[336514906,1724887831924,-68116.75951615,0.00015,2]
[336514907,1724887831935,-73436.82928857,0.00015,2]
[336514908,1724887831946,-13499.93943,0.000151,2]
[336514909,1724887831956,-1000.0,0.00015521,2]
[336514910,1724887831967,-23190.46022712,0.00015858,2]
[336514911,1724887831976,-5500.0,0.000161,2]
[336514912,1724887831985,-255.0,0.00016124,2]
[336514913,1724887831994,-150.99,0.00016124,2]
[336514914,1724887832006,-200.0,0.0001634,2]
[336514915,1724887832016,-1500.0,0.00016419,2]
[336514916,1724887832026,-162.93,0.00016712,2]
[336514917,1724887832035,-32108.91822675,0.00017,2]
[336514923,1724887837575,-17382.69656042,0.00017,2]
[336514924,1724887837617,-3912.37242861,0.00017,2]
[336514925,1724887837629,-1520.39891193,0.00017,2]
[336514926,1724887837655,-6663.88942196,0.00017,2]
[336514927,1724887837666,-6445.00021091,0.00017,2]
[336514928,1724887837678,-8125.63873235,0.00017,2]
[336514929,1724887837687,-35.91359574,0.00017064,2]
[336514930,1724887837698,-464.08640426,0.00017064,2]
[336514931,1724887837707,-176.15632561,0.000171,2]
[336514932,1724887837716,-499.99,0.000171,2]
[336514933,1724887837726,-69.68400692,0.000172,2]
[336514934,1724887837740,-84.31599308,0.000172,2]
[336514935,1724887837754,-191.6485937,0.000173,2]
[336515034,1724887840053,-278.37957978,0.000173,2]
[336515036,1724887840064,-29.97182652,0.000173,2]
[336515038,1724887840073,-257.47817354,0.000173,2]
[336515040,1724887840084,-242.52182646,0.000173,2]
[336515041,1724887840093,-264.28817354,0.000173,2]
[336515042,1724887840105,-235.71182646,0.000173,2]
[336515043,1724887840114,-500.0,0.000173,2]
[336515044,1724887840123,-329.0,0.00017339,2]
[336515045,1724887840132,-374.35900722,0.00017524,2]
[336515046,1724887840534,-0.02205972,0.00017524,2]
[336515052,1724887842781,-778.84,0.00017524,2]
[336515053,1724887842801,-846.77893306,0.00017524,2]
[336515054,1724887842814,-297.41,0.00017534,2]
[336515055,1724887842831,-155.0,0.00017625,2]
[336515056,1724887842845,-669.21204966,0.00017625,2]
[336515073,1724887845079,-159.31795034,0.00017625,2]
[336515074,1724887845092,-164.64824366,0.00017625,2]
[336515075,1724887845106,-869.95370905,0.00017625,2]
[336515076,1724887845121,-627.59413878,0.00017625,2]
[336515077,1724887845186,-478.6711612,0.00017625,2]
[336515078,1724887845273,-7859.12274731,0.00017625,2]
[336515079,1724887845286,-2650.18506372,0.00017625,2]
[336515080,1724887845298,-764.0,0.00017625,2]
[336515081,1724887845311,-248.0,0.00017625,2]
[336515082,1724887845322,-1154.0,0.00017625,2]
[336515083,1724887845334,-5851.0,0.00017625,2]
[336515084,1724887845346,-1922.0,0.00017625,2]
[336515085,1724887845358,-1259.0,0.00017625,2]
[336515086,1724887845371,-1545.0,0.00017625,2]
[336515088,1724887845383,-3730.0,0.00017625,2]
[336515090,1724887845395,-623.0,0.00017625,2]
[336515091,1724887845408,-13456.0,0.00017625,2]
[336515092,1724887845419,-1143.0,0.00017625,2]
[336515093,1724887845432,-557.0,0.00017625,2]
[336515094,1724887845443,-791.996,0.00017625,2]
[336515095,1724887845455,-2731.67,0.00017832,2]
[336515096,1724887845468,-58676.91956384,0.000179,2]
[336515098,1724887845480,-161.717,0.000179,2]
[336515100,1724887845493,-657.81251993,0.00018,2]
[336515101,1724887845504,-20035.73831516,0.00018,2]
[336515102,1724887845516,-1121.32891253,0.00018,2]
[336515103,1724887845528,-4021.53199818,0.00018,2]
[336515104,1724887845541,-200.0,0.00018,10]
[336515105,1724887845552,-5563.70712553,0.00018,2]
[336515106,1724887845564,-1020.75434283,0.00018,2]
[336515107,1724887845576,-1677.21029845,0.000181,2]
[336515108,1724887845588,-5548.28352206,0.00018539,2]
[336515109,1724887845600,-181.274051,0.00018708,2]
[336515110,1724887845613,-4021.53199812,0.00018765,2]
[336515111,1724887845625,-2500.0,0.00018789,2]
[336515112,1724887845639,-170.15,0.00018836,2]
[336515113,1724887845651,-161.717,0.0001884,2]
[336515114,1724887845663,-887.93087142,0.00019,2]
[336515115,1724887845674,-8500.0,0.0001933,2]
[336515116,1724887845686,-4021.53199812,0.00019531,2]
[336515117,1724887845698,-151.0,0.00019626,2]
[336515118,1724887845711,-814.02,0.00019658,2]
[336515119,1724887845723,-161.717,0.00019878,2]
[336515120,1724887845738,-9788.58555932,0.0001988,2]
[336515121,1724887845750,-983.07206451,0.0001989,2]
[336515122,1724887845762,-150.85,0.00019921,2]
[336515123,1724887845775,-500.0,0.0001993,2]
[336515124,1724887845787,-500.0,0.0001993,2]
[336515125,1724887845799,-500.0,0.0001993,2]
[336515126,1724887845811,-500.0,0.0001993,2]
[336515127,1724887845826,-500.0,0.0001993,2]
[336515128,1724887845839,-500.0,0.0001993,2]
[336515129,1724887845852,-500.0,0.0001993,2]
[336515130,1724887845864,-500.0,0.0001993,2]
[336515131,1724887845876,-476.225,0.0001993,2]
[336515132,1724887845888,-500.0,0.0001993,2]
[336515133,1724887845901,-500.0,0.0001993,2]
[336515134,1724887845915,-500.0,0.0001993,2]
[336515135,1724887845928,-500.0,0.0001993,2]
[336515138,1724887845941,-500.0,0.0001993,2]
[336515139,1724887845952,-500.0,0.0001993,2]
[336515140,1724887845962,-500.0,0.0001993,2]
[336515141,1724887845972,-189.84466919,0.0001993,2]
[336515142,1724887845982,-500.0,0.0001993,2]
[336515143,1724887845992,-500.0,0.0001993,2]
[336515144,1724887846002,-500.0,0.0001993,2]
[336515145,1724887846011,-504.18987798,0.0001993,2]
[336515146,1724887846532,-500.0,0.0001993,2]
[336515147,1724887846551,-500.0,0.0001993,2]
[336515148,1724887846586,-500.0,0.0001993,2]
[336515149,1724887846614,-500.0,0.0001993,2]
[336515150,1724887846634,-500.0,0.0001993,2]
[336515151,1724887846644,-500.0,0.0001993,2]
[336515152,1724887846654,-500.0,0.0001993,2]
[336515153,1724887846663,-500.0,0.0001993,2]
[336515154,1724887846673,-500.0,0.0001993,2]
[336515155,1724887846682,-500.0,0.0001993,2]
[336515156,1724887846692,-277.07368951,0.0001993,2]
[336515157,1724887846701,-500.0,0.0001993,2]
[336515158,1724887846711,-500.0,0.0001993,2]
[336515159,1724887846720,-30963.0,0.00019931,2]
[336515160,1724887846731,-294.4244479,0.0002,2]
[336515161,1724887846742,-745.91730558,0.0002,2]
[336515162,1724887846751,-1994.41957197,0.0002,2]
[336515163,1724887847705,-150.0,0.00018255,2]
[336515164,1724887847715,-370.38152683,0.0002,2]
[336515165,1724887847727,-1417.34541314,0.0002,2]
[336515166,1724887847736,-6653.0,0.0002,2]
[336515167,1724887847746,-7202.7642911,0.0002,2]
[336515168,1724887847756,-3950.0,0.0002,2]
[336515169,1724887847765,-7237.60861612,0.0002,2]
[336515170,1724887847777,-17465.34620252,0.0002,2]
[336515171,1724887847788,-42709.38838373,0.0002,2]
[336515172,1724887847798,-3919.8191581,0.0002,2]
[336515173,1724887847808,-3244.65271916,0.0002,2]
[336515174,1724887847818,-226.4,0.00020021,2]
[336515175,1724887847828,-3000.0,0.00020188,2]
[336515176,1724887847838,-4021.53199812,0.00020296,2]
[336515177,1724887847847,-5851.0,0.00020625,2]
[336515178,1724887847856,-1922.0,0.00020625,2]
[336515179,1724887847866,-1259.0,0.00020625,2]
[336515180,1724887847875,-1545.0,0.00020625,2]
[336515181,1724887847884,-3730.0,0.00020625,2]
[336515182,1724887847893,-623.0,0.00020625,2]
[336515183,1724887847906,-13456.0,0.00020625,2]
[336515184,1724887847916,-1143.0,0.00020625,2]
[336515185,1724887847926,-7620.3999,0.00020701,2]
[336515186,1724887847936,-3000.0,0.00020718,2]
[336515187,1724887847945,-2999.99,0.00020754,2]
[336515188,1724887847955,-3000.0,0.00020792,2]
[336515189,1724887847964,-3000.0,0.00020795,2]
[336515190,1724887847974,-1047.62,0.00020801,2]
[336515191,1724887847983,-3000.0,0.00020807,2]
[336515192,1724887848000,-1000.0,0.00020921,2]
[336515193,1724887848009,-1000.0,0.00020921,2]
[336515194,1724887848018,-1000.0,0.00020921,3]
[336515195,1724887848028,-1000.0,0.00020921,2]
[336515196,1724887848038,-1000.0,0.00020921,3]
[336515197,1724887848047,-1000.0,0.00020921,2]
[336515198,1724887848057,-1000.0,0.00020921,2]
[336515199,1724887848066,-1000.0,0.00020921,2]
[336515200,1724887848075,-1000.0,0.00020921,2]
[336515201,1724887848084,-1000.0,0.00020921,2]
[336515202,1724887848094,-1000.0,0.00020921,3]
[336515203,1724887848104,-1000.0,0.00020921,2]
[336515204,1724887848113,-1000.0,0.00020921,2]
[336515205,1724887848122,-1000.0,0.00020921,2]
[336515206,1724887848131,-1212.24512758,0.00020988,2]
[336515207,1724887848141,-988.03302838,0.00020997,2]
[336515208,1724887848151,-1004.84,0.00021,2]
[336515209,1724887848160,-33574.36937064,0.00021,2]
[336515210,1724887848170,-3642.95708286,0.00021,2]
[336515211,1724887848179,-287.019743,0.00021,2]
[336515212,1724887848189,-7798.64571171,0.00021,2]
[336515213,1724887848198,-725.25420046,0.00021,2]
[336515214,1724887848208,-1503.73118048,0.00021,5]
[336515215,1724887848217,-200.0,0.00021053,2]
[336515216,1724887848227,-4021.53199812,0.00021061,2]
[336515217,1724887848236,-1537.44353983,0.00021144,2]
[336515218,1724887848246,-297.41,0.0002137,2]
[336515219,1724887848255,-201.27,0.00021564,2]
[336515220,1724887848264,-14436.5496969,0.00021566,3]
[336515221,1724887848274,-808.0,0.00021576,2]
[336515222,1724887848284,-180.0,0.00021576,2]
[336515223,1724887848293,-1883.69,0.00021576,2]
[336515224,1724887848303,-237.0,0.00021576,2]
[336515225,1724887848312,-192.0,0.00021576,2]
[336515226,1724887848321,-1576.2,0.00021576,2]
[336515227,1724887848330,-209.32,0.00021576,2]
[336515228,1724887848340,-580.13,0.00021576,2]
[336515229,1724887848349,-200.0,0.00021576,2]
[336515230,1724887848358,-250.0,0.00021576,2]
[336515231,1724887848367,-22721.72,0.00021576,2]
[336515232,1724887848376,-1060.87,0.00021576,2]
[336515233,1724887848385,-706.98,0.00021576,2]
[336515234,1724887848394,-60717.03,0.00021576,2]
[336515235,1724887848403,-980.83,0.00021589,30]
[336515236,1724887848412,-1500.0,0.00021695,10]
[336515237,1724887848422,-3500.0,0.00021705,2]
[336515238,1724887848431,-350.15,0.00021707,2]
[336515239,1724887848440,-215.85,0.00021751,2]
[336515240,1724887848449,-250.0,0.00021759,2]
[336515241,1724887848459,-14436.5496969,0.000218,3]
[336515242,1724887848468,-150.85,0.000218,2]
[336515243,1724887848477,-17501.35009797,0.0002181,2]
[336515244,1724887848489,-612.67,0.0002181,2]
[336515245,1724887848500,-3795.64476265,0.0002181,2]
[336515246,1724887848512,-1990.33513938,0.0002181,2]
[336515247,1724887848521,-746.34538744,0.00021827,2]
[336515248,1724887848574,-2990.50036596,0.00021827,2]
[336515253,1724887863083,-281.00881241,0.00021827,2]
[336515254,1724887863123,-3.67743231,0.00021827,2]
[336515255,1724887863133,-797.91,0.00021832,2]
[336515256,1724887863142,-150.85,0.0002186,2]
[336515257,1724887863152,-2617.57902116,0.0002187,2]
[336515258,1724887863163,-1102.43613394,0.0002187,2]
[336515259,1724887863174,-417.47216,0.0002187,2]
[336515260,1724887863186,-341407.64124671,0.0002187,2]
[336515261,1724887863196,-1545.26805154,0.0002187,2]
[336515262,1724887863214,-1429.24671374,0.0002187,2]
[336515263,1724887863225,-5564.51153717,0.0002187,2]
[336515264,1724887863237,-7818.3596,0.0002187,2]
[336515265,1724887863248,-364.54288104,0.0002187,2]
[336515266,1724887863260,-273.72011597,0.0002187,2]
[336515267,1724887863280,-252.32,0.0002187,2]
[336515268,1724887863524,-12695.33713865,0.0002187,2]
[336515269,1724887863545,-9590.76841585,0.0002187,2]
[336515270,1724887876111,1050.0,0.0001,2]
[336515271,1724887898894,160.53,0.00010959,2]
[336515273,1724888113786,160.0,0.000109,2]
[336515274,1724888266438,2000.0,0.00019587,120]
[336515275,1724888526662,154.88,0.00010959,2]
[336515284,1724888853056,200.0,0.00010904,2]
[336515292,1724889034619,-655.60712406,0.00012,2]
[336515294,1724889034639,-444.39287594,0.00012,2]
[336515296,1724889034650,-169.89742313,0.00013599,2]
[336515298,1724889034659,-178.44,0.00013699,2]
[336515300,1724889034669,-1150.0,0.00014,2]
[336515302,1724889034679,-174.6,0.00015958,2]
[336515304,1724889034689,-1200.0,0.00016,2]
[336515306,1724889034698,-516.85155358,0.0001658,2]
[336515311,1724889035758,-471.40844642,0.0001658,2]
[336515312,1724889035768,-162.93,0.00016712,2]
[336515313,1724889035778,-150.0,0.00017973,2]
[336515314,1724889035787,-499.99,0.00017973,2]
[336515315,1724889035796,-300.0,0.00017999,2]
[336515316,1724889035806,-1250.0,0.00018,2]
[336515317,1724889035816,-212.4616837,0.00018,2]
[336515318,1724889035825,-7083.74519568,0.00018,2]
[336515319,1724889035836,-340.28165674,0.00018,2]
[336515320,1724889035863,-262.46590742,0.00018,2]
[336515321,1724889035875,-546.31720555,0.00018,2]
[336515322,1724889035910,-296.06256485,0.00018,2]
[336515323,1724889035922,-99.19746976,0.00018,2]
[336515324,1724889035932,-341.2685788,0.00018,2]
[336515325,1724889036054,-539.3414212,0.00018,2]
[336515326,1724889036064,-2343.87204223,0.00018,2]
[336515342,1724889037975,-20953.61457986,0.00018,2]
[336515343,1724889037985,-150.0,0.0001818,2]
[336515344,1724889037995,-934.33,0.00018275,2]
[336515345,1724889038005,-7402.47,0.00018375,2]
[336515346,1724889038014,-250.0,0.00018407,2]
[336515347,1724889038023,-660.99,0.00018488,2]
[336515348,1724889038032,-178.44,0.00018493,2]
[336515349,1724889038041,-23900.0,0.00018596,2]
[336515350,1724889038050,-708.97,0.00018616,2]
[336515351,1724889038059,-623.0,0.00018712,2]
[336515352,1724889038071,-1545.0,0.00018712,2]
[336515353,1724889038082,-1259.0,0.00018712,2]
[336515354,1724889038091,-1922.0,0.00018712,2]
[336515355,1724889038101,-794.611,0.00018712,2]
[336515356,1724889038111,-447.0,0.00018712,2]
[336515357,1724889038121,-810.0,0.00018712,2]
[336515358,1724889038131,-556.0,0.00018712,2]
[336515359,1724889038140,-552.0,0.00018712,2]
[336515360,1724889038149,-1898.0,0.00018712,2]
[336515361,1724889038158,-248.0,0.00018712,2]
[336515362,1724889038170,-1154.0,0.00018712,2]
[336515363,1724889038181,-3321.0,0.00018712,2]
[336515364,1724889038191,-804.0,0.00018712,2]
[336515365,1724889038201,-151.0,0.00018712,2]
[336515366,1724889038210,-5851.0,0.00018712,2]
[336515367,1724889038220,-150.318,0.00018712,2]
[336515368,1724889038229,-352.159,0.00018712,2]
[336515369,1724889038238,-163.0,0.00018712,2]
[336515370,1724889038247,-150.0,0.00018712,2]
[336515371,1724889038257,-164.23,0.00018712,2]
[336515372,1724889038266,-209.076,0.00018712,2]
[336515373,1724889038275,-3730.0,0.00018712,2]
[336515374,1724889038283,-200.0,0.00018712,2]
[336515375,1724889038292,-1143.0,0.00018712,2]
[336515376,1724889038301,-252.866,0.00018712,2]
[336515377,1724889038310,-155.692,0.00018712,2]
[336515378,1724889038319,-13456.0,0.00018712,2]
[336515379,1724889038328,-250.0,0.00018712,2]
[336515380,1724889038337,-169.97,0.00018729,2]
[336515381,1724889038346,-200.0,0.00018783,2]
[336515382,1724889038355,-1885.52,0.00018783,2]
[336515383,1724889038364,-850.47,0.00018796,2]
[336515384,1724889038373,-250.0,0.00018813,2]
[336515385,1724889038383,-154.88,0.00018836,2]
[336515386,1724889038391,-988.26,0.00018844,2]
[336515387,1724889038401,-153.6,0.0001914,2]
[336515388,1724889038410,-2751.0,0.0001914,2]
[336515389,1724889038419,-11744.36,0.00019151,2]
[336515390,1724889038429,-3170.08,0.00019178,2]
[336515391,1724889038439,-848.69,0.00019245,2]
[336515392,1724889038450,-200.0,0.00019459,2]
[336515393,1724889038459,-200.0,0.00019459,2]
[336515394,1724889038469,-200.0,0.00019459,2]
[336515395,1724889038478,-200.0,0.00019459,2]
[336515396,1724889038487,-200.0,0.00019459,2]
[336515397,1724889038496,-200.0,0.00019459,2]
[336515398,1724889038505,-190.0,0.00019459,2]
[336515399,1724889038514,-151.0,0.00019626,2]
[336515400,1724889038524,-420.0,0.00019639,2]
[336515401,1724889038533,-300.0,0.00019776,2]
[336515402,1724889038543,-11571.41619669,0.000199,2]
[336515403,1724889038552,-183.23410944,0.00020108,4]
[336515404,1724889038562,-848.69,0.00020208,2]
[336515405,1724889038571,-11571.41619668,0.00020379,2]
[336515406,1724889038580,-938.4516,0.000204,2]
[336515407,1724889038589,-347.853,0.000204,2]
[336515408,1724889038599,-8703.7603,0.000204,2]
[336515409,1724889038608,-3043.2129,0.00020407,2]
[336515410,1724889038617,-1288.9779,0.0002041,2]
[336515411,1724889038627,-2000.0,0.000205,2]
[336515412,1724889038636,-2000.0,0.000205,2]
[336515413,1724889038646,-2000.0,0.0002051,2]
[336515414,1724889038655,-2000.0,0.0002051,2]
[336515415,1724889038664,-3668.819232,0.0002052,2]
[336515416,1724889038675,-3924.44654,0.0002052,2]
[336515417,1724889038685,-521.685904,0.00020548,2]
[336515418,1724889038694,-20170.06,0.00020548,2]
[336515419,1724889038704,-1000.0,0.00020556,2]
[336515420,1724889038714,-2000.0,0.00021,2]
[336515421,1724889038725,-996.44,0.00021,2]
[336515422,1724889038735,-287.019743,0.00021,2]
[336515423,1724889038746,-169.97,0.0002107,2]
[336515424,1724889038755,-988.26,0.00021108,2]
[336515425,1724889038765,-300.0,0.00021146,2]
[336515426,1724889038774,-848.69,0.0002117,2]
[336515427,1724889038783,-1000.0,0.00021298,2]
[336515428,1724889038793,-1000.0,0.00021298,2]
[336515429,1724889038802,-1000.0,0.00021298,2]
[336515430,1724889038812,-1000.0,0.00021298,3]
[336515431,1724889038821,-521.685904,0.0002137,2]
[336515432,1724889038830,-5919.83,0.0002137,2]
[336515433,1724889038840,-1009.08765711,0.0002139,2]
[336515434,1724889038849,-587.0,0.00021428,2]
[336515435,1724889038859,-1052.58188157,0.00021433,2]
[336515436,1724889038869,-3300.0,0.00021508,2]
[336515437,1724889038878,-153.6,0.00021533,2]
[336515438,1724889038889,-420.80890126,0.0002155,2]
[336515439,1724889038899,-846.4,0.00021576,2]
[336515440,1724889038908,-292.0,0.00021576,2]
[336515441,1724889038918,-180.0,0.00021576,2]
[336515442,1724889038927,-910.77,0.00021589,30]
[336515443,1724889038936,-6135.35461983,0.0002166,2]
[336515444,1724889038945,-174.12842967,0.00021673,2]
[336515445,1724889038955,-365.2039,0.0002168,2]
[336515446,1724889038964,-11571.41619668,0.0002168,2]
[336515447,1724889038974,-623.0,0.00021712,2]
[336515448,1724889038984,-1541.0,0.00021712,2]
[336515449,1724889038993,-1259.0,0.00021712,2]
[336515450,1724889039002,-1922.0,0.00021712,2]
[336515451,1724889039011,-552.0,0.00021712,2]
[336515452,1724889039021,-1186.453,0.00021712,2]
[336515453,1724889039030,-3321.0,0.00021712,2]
[336515454,1724889039039,-484.0,0.00021712,2]
[336515455,1724889039048,-5851.0,0.00021712,2]
[336515456,1724889039057,-2574.277,0.00021712,2]
[336515457,1724889039066,-150.0,0.00021712,2]
[336515458,1724889039075,-390.431,0.00021712,2]
[336515459,1724889039084,-150.0,0.00021712,2]
[336515460,1724889039093,-13456.0,0.00021712,2]
[336515461,1724889039102,-150.0,0.00021712,2]
[336515462,1724889039112,-42951.7181065,0.0002177,3]
[336515463,1724889039122,-100000.0,0.0002178,2]
[336515464,1724889039135,-354.8513,0.0002178,2]
[336515465,1724889039144,-500.0,0.0002178,2]
[336515466,1724889039152,-1476.7746,0.00021838,2]
[336515467,1724889039161,-693.9613,0.00021838,2]
[336515468,1724889039171,-14317.2393688,0.00021855,3]
[336515469,1724889039181,-18408.5597895,0.00021865,2]
[336515470,1724889039193,-14317.2393688,0.00021865,3]
[336515471,1724889039203,-200.0,0.0002187,2]
[336515472,1724889039214,-2000.0,0.0002187,2]
[336515473,1724889039225,-200.0,0.0002187,2]
[336515474,1724889039234,-3000.0,0.0002187,2]
[336515475,1724889039242,-2000.0,0.0002187,2]
[336515476,1724889039252,-200.0,0.0002187,2]
[336515477,1724889039262,-150.81,0.0002187,2]
[336515478,1724889039271,-500.0,0.00021873,2]
[336515479,1724889039281,-315.73234312,0.00021874,2]
[336515480,1724889039291,-164.025,0.00021879,2]
[336515481,1724889039301,-556.02109755,0.00021879,2]
[336515482,1724889039310,-187.7605188,0.00021879,2]
[336515483,1724889039319,-500.0,0.00021879,2]
[336515484,1724889039329,-419.67485439,0.00021879,2]
[336515485,1724889039338,-57268.9574753,0.0002188,3]
[336515486,1724889039348,-114537.914951,0.0002189,3]
[336515487,1724889039357,-38615.229539,0.0002189,3]
[336515488,1724889039366,-150.81,0.0002189,2]
[336515489,1724889039376,-500.0,0.00021894,2]
[336515491,1724889039387,-1462.90494823,0.00021897,2]
[336515492,1724889039397,-245000.0,0.000219,2]
[336515493,1724889039406,-500.0,0.00021903,2]